{"text_format":"3","workbook":"xlsx","n_sheets":6,"sheets":["datosvcombu","datosvelec","resultados","listas","datos","formulario"],"not_rendered":{"macros":1},"read":"whole","date_system":"1900"}

{"sheet":"datosvcombu","index":0,"n_rows":5,"n_cols":1,"rows_kept":5,"merged":[[0,0,0,1]]}
["DATOS DEL VEHÍCULO DE COMBUSTIÓN"]
["Categoría:"]
["Combustible:"]
["Consumo medio de combustible (l/100 km):"]
["Km recorridos al año:"]

{"sheet":"datosvelec","index":1,"n_rows":7,"n_cols":1,"rows_kept":7,"merged":[[0,0,0,1]]}
["DATOS DEL VEHÍCULO ELÉCTRICO"]
["Nº de vehículos para los que solicita la ayuda:"]
["Categoría:"]
["¿Conoce el consumo medio de energía de su vehículo eléctrico?:"]
["Consumo medio de energía (kWh/100 km):"]
["Capacidad de la batería (Kwh):"]
["Autonomía del vehículo eléctrico (km):"]

{"sheet":"resultados","index":2,"n_rows":22,"n_cols":6,"rows_kept":22,"merged":[[0,0,0,1],[0,4,0,5],[8,0,8,1],[8,4,8,5],[16,0,16,5],[18,0,18,1],[18,4,18,5]]}
["DATOS DEL VEHÍCULO DE COMBUSTIÓN",{"$nulls":3},"DATOS DEL VEHÍCULO ELÉCTRICO"]
["Categoría:",{"$f":"datosvcombu!B2","v":0},null,null,"Nº de vehículos para los que solicita la ayuda:",{"$f":"datosvelec!B2","v":0}]
["Combustible:",{"$f":"datosvcombu!B3","v":0},null,null,"Categoría:",{"$f":"datosvelec!B3","v":0}]
["Consumo medio de combustible (l/100 km):",{"$f":"datosvcombu!B4","v":0},null,null,"¿Conoce el consumo medio de energía de su vehículo eléctrico?:",{"$f":"datosvelec!B4","v":0}]
["Km recorridos al año:",{"$f":"datosvcombu!B5","v":0},null,null,"Consumo medio de energía (kWh/100 km):",{"$f":"datosvelec!B5","v":0}]
[{"$nulls":4},"Capacidad de la batería (Kwh):",{"$f":"datosvelec!B6","v":0}]
[{"$nulls":4},"Autonomía del vehículo eléctrico (km):",{"$f":"datosvelec!B7","v":0}]
[]
["RESULTADOS VEHÍCULO DE COMBUSTIÓN",{"$nulls":3},"RESULTADOS VEHÍCULO ELÉCTRICO"]
["Consumo anual (litros):",{"$f":"B$4*B$5/100","v":{"v":0,"d":"0.000"}},null,null,"Consumo anual (litros):","-"]
["Consumo enérgético anual del vehículo (kWh):",{"$f":"IF(B$3= listas!A18, B$4*B$5*(datos!$C$21/1000)*datos!$C$23/1000000, B$4*B$5*(datos!$C$22/1000)*datos!$C$23/1000000)","v":{"v":0,"d":"0.000"}},null,null,"Consumo enérgético anual del vehículo (kWh):",{"$f":"F5/100*B5","v":{"v":0,"d":"0.000"}}]
["Energía final anual (tep/año):",{"$f":"B11/datos!$C$23","v":{"v":0,"d":"0.000"}},null,null,"Energía final anual (tep/año):",{"$f":"F11/(datos!$C$23*datos!$C$24)","v":{"v":0,"d":"0.000"}}]
["Energía primaria anual (tep/año):",{"$f":"B12*datos!C13","v":{"v":0,"d":"0.000"}},null,null,"Energía primaria anual (tep/año):",{"$f":"F12*datos!C12","v":{"v":0,"d":"0.000"}}]
["Emisiones anuales de CO2 asociadas al uso del vehículo:",{"$f":"IF(resultados!B3=listas!A18, B13*datos!C17, B13*datos!C18)","v":{"v":0,"d":"0.000"}},null,null,"Emisiones anuales de CO2 asociadas al uso del vehículo:",{"$f":"F13*datos!C16","v":{"v":0,"d":"0.000"}}]
[]
[]
["AHORRO ENERGÉTICO Y REDUCCIÓN DE EMISIONES DE CO2"]
[]
["Ahorro por cada vehículo",{"$nulls":3},"Ahorro total de la actuación"]
["Ahorro de energía final (tep/año):",{"$f":"ROUND(B12-F12, 3)","v":{"v":0,"d":"0.000"}},null,null,"Ahorro de energía final (tep/año):",{"$f":"F$2*B20","v":{"v":0,"d":"0.000"}}]
["Ahorro de energía primaria (tep/año):",{"$f":"ROUND(B13-F13, 3)","v":{"v":0,"d":"0.000"}},null,null,"Ahorro de energía primaria (tep/año):",{"$f":"F$2*B21","v":{"v":0,"d":"0.000"}}]
["Reducción de emisiones de CO2 (tCO2/año):",{"$f":"ROUND(B14-F14, 3)","v":{"v":0,"d":"0.000"}},null,null,"Reducción de emisiones de CO2 (tCO2/año):",{"v":0,"d":"0.000"}]

{"sheet":"listas","index":3,"n_rows":27,"n_cols":5,"rows_kept":27}
["Categorías de vehículos"]
["Turismo M1. Vehículo de motor concebido y fabricado principalmente para el transporte de personas y su equipaje, que tenga, como máximo, ocho plazas de asiento además de la del conductor. No dispondrá de ningún espacio para viajeros de pie."]
["Autobus o autocar M2. Vehículo de motor concebido y fabricado principalmente para el transporte de personas y su equipaje, que tenga más de ocho plazas de asiento además de la del conductor y cuya masa máxima en carga técnicamente admisible (MMTA) no sea superior a 5 toneladas. Podrá tener, además de las plazas de asiento, espacio para viajeros de pie. "]
["Autobus o autocar M3. Vehículo de motor concebido y fabricado principalmente para el transporte de personas y su equipaje, que tenga más de ocho plazas de asiento además de la del conductor y cuya masa máxima en carga técnicamente admisible (MMTA) sea superior a 5 toneladas. Podrá tener espacio para viajeros de pie. "]
["Furgoneta o camión ligero N1. Vehículo a motor concebido y fabricado principalmente para el transporte de mercancías, y cuya masa máxima en carga técnicamente admisible (MMTA) no sea superior a 3,5 toneladas."]
["Furgón o camión ligero N2. Vehículo a motor concebido y fabricado principalmente para el transporte de mecancías y cuya masa máxima en carga técnicamente admisible (MMTA) sea superior a 3,5 toneladas, pero no a 12 toneladas."]
["Furgón o camión N3. Vehículo a motor concebido y fabricado principalmente para el transporte de mercancías y cuya masa máxima en carga técnicamente admisible (MMTA) sea superior a 12 toneladas."]
["L2e. Vehículo de tres ruedas con una velocidad máxima por construcción no superior a 45 m/h, y potencia máxima inferior o igual a 4 kW."]
["L3e Motocicleta. Vehículo de dos ruedas sin sidecar y con una velocidad máxima por construcción superior a 45 km/h."]
["L6e Cuadriciclo ligero: cuya masa en vacío sea inferior o igual a 350 kg., no incluida la masa de las baterías, cuya velocidad máxima por construcción sea inferior o igual a 45 km/h, y potencia máxima inferior o igual a 4 kW."]
["L7e Cuadriciclo: cuya masa en vacío sea inferior o igual a 400 kg. (550 kg. para vehíclos destinados al transporte de mercancías), no incluida la masa de las baterías, y potencia máxima inferior o igual a 15 kW."]
[]
[]
[]
[]
[]
["Combustible que utiliza el vehículo de combustión",null,"Opciones",null,"Categorías de vehículos"]
["Diésel",null,"Sí",null,"Turismo M1"]
["Gasolina",null,"No",null,"Autobús o autocar M2"]
[{"$nulls":4},"Autobús o autocar M3"]
["Nº de vehículos para los que solicita la ayuda:",{"$nulls":3},"Furgoneta o camión ligero N1"]
[1,{"$nulls":3},"Furgón o camión ligero N2"]
[2,{"$nulls":3},"Furgón o camión N3"]
[3,{"$nulls":3},"L2e vehículo de 3 ruedas"]
[4,{"$nulls":3},"L3e Motocicleta"]
[{"$nulls":4},"L6e Cuadriciclo ligero"]
[{"$nulls":4},"L7e Cuadriciclo"]

{"sheet":"datos","index":4,"n_rows":24,"n_cols":9,"rows_kept":24,"merged":[[7,1,7,4],[8,1,8,4]]}
[]
[]
[null,null,"Consumo Wh/km y l/100 km","km anuales","Consumo anual (litros)","Consumo enérgético anual del vehículo (kwh)","Energía final anual (Tep)","Energía primaria anual (Tep)","Emisiones anuales de CO2 asociadas al uso del vehículo"]
[null,"Vehículo eléctrico",{"v":170,"d":"170.00"},{"v":15000,"d":"15,000"},"-",{"$f":"D4*C4/1000","v":{"v":2550,"d":"2,550"}},{"$f":"F4/(C24*C23)","v":{"v":0.24362281456004586,"d":"0.244"}},{"$f":"G4*C12","v":{"v":0.5725136142161078,"d":"0.573"}},{"$f":"H4*C16","v":{"v":2.198452278589854,"d":"2.198"}}]
[null,"Vehículo Diesel",{"v":7,"d":"7.00"},{"v":15000,"d":"15,000"},{"$f":"C5*D5/100","v":{"v":1050,"d":"1,050"}},{"$f":"C5*D5*8.326*11630/1000000","v":{"v":10167.2949,"d":"10,167"}},{"$f":"F5/C23","v":{"v":0.8742300000000001,"d":"0.874"}},{"$f":"G5*C13","v":{"v":0.9791376000000002,"d":"0.979"}},{"$f":"H5*C17","v":{"v":2.9961610560000005,"d":"2.996"}}]
[null,"Vehículo Gasolina",{"v":8,"d":"8.00"},{"v":15000,"d":"15,000"},{"$f":"C6*D6/100","v":{"v":1200,"d":"1,200"}},{"$f":"C6*D6*7.635*11630/1000000","v":{"v":10655.406,"d":"10,655"}},{"$f":"F6/C23","v":{"v":0.9162000000000001,"d":"0.916"}},{"$f":"G6*C13","v":{"v":1.0261440000000002,"d":"1.026"}},{"$f":"H6*C18","v":{"v":2.9552947200000004,"d":"2.955"}}]
[]
[null,"Ahorro con respecto al diesel",{"$nulls":3},{"$f":"F5-F4","v":{"v":7617.294900000001,"d":"7,617"}},{"$f":"G5-G4","v":{"v":0.6306071854399542,"d":"0.631"}},{"$f":"H5-H4","v":{"v":0.40662398578389236,"d":"0.407"}},{"$f":"I5-I4","v":{"v":0.7977087774101466,"d":"0.798"}}]
[null,"Ahorro con respecto a la gasolina",{"$nulls":3},{"$f":"F6-F4","v":{"v":8105.406000000001,"d":"8,105"}},{"$f":"G6-G4","v":{"v":0.6725771854399543,"d":"0.673"}},{"$f":"H6-H4","v":{"v":0.45363038578389236,"d":"0.454"}},{"$f":"I6-I4","v":{"v":0.7568424414101464,"d":"0.757"}}]
[]
[]
[null,"Factor de conversión para transformar energía eléctrica final en primaria",2.35]
[null,"Factor de conversión para transformar energía de diesel/gasolina final en primaria",1.12]
[]
[null,"Factores de conversión para calcular emisiones CO2 (tCO2/tep)"]
[null,"Energía eléctrica",3.84]
[null,"Diesel",3.06]
[null,"Gasolina",2.88]
[]
[null,"Equivalencias consideradas"]
[null,"PCI Diesel (Kcal/litro)",8326]
[null,"PCI Gasolinas (Kcal/litro)",7635]
[null,"1 tep",11630,"Kwh"]
[null,"Rendimiento medio de los cargadores de VE",0.9]

{"sheet":"formulario","index":5,"n_rows":0,"n_cols":0,"rows_kept":0}